[Event "Early-Titled-Tuesday-Blitz-July-09-2024"]
[Site "Chess.com"]
[Date "2024.07.09"]
[Round "10"]
[White "tusplingher"]
[Black "Schack-Hugo"]
[Result "0-1"]
[WhiteElo "2682"]
[BlackElo "2564"]
[TimeControl "180+1"]
[EndTime "9:57:16 PDT"]
[Termination "Schack-Hugo won by resignation"]

1. c4 {[%clk 0:03:00.9]} 1... c6 {[%clk 0:02:58]} 2. g3 {[%clk 0:03:00.5]} 2...
d5 {[%clk 0:02:58.5]} 3. Bg2 {[%clk 0:03:01.3]} 3... Nf6 {[%clk 0:02:58.9]} 4.
Nf3 {[%clk 0:03:00.6]} 4... dxc4 {[%clk 0:02:58.2]} 5. O-O {[%clk 0:03:00.2]}
5... Nbd7 {[%clk 0:02:58.2]} 6. Qc2 {[%clk 0:02:59.8]} 6... Nb6 {[%clk
0:02:58.6]} 7. Na3 {[%clk 0:02:58.8]} 7... Be6 {[%clk 0:02:59]} 8. Ne5 {[%clk
0:02:57.3]} 8... Qd4 {[%clk 0:02:58.9]} 9. Nxc6 {[%clk 0:02:54]} 9... bxc6
{[%clk 0:02:59.2]} 10. Bxc6+ {[%clk 0:02:54.3]} 10... Kd8 {[%clk 0:02:59.2]} 11.
Nb5 {[%clk 0:02:54.5]} 11... Qe5 {[%clk 0:02:53.1]} 12. Bxa8 {[%clk 0:02:52.7]}
12... Nxa8 {[%clk 0:02:48.1]} 13. a4 {[%clk 0:02:45.6]} 13... h5 {[%clk
0:02:46.3]} 14. d4 {[%clk 0:02:42.1]} 14... Qd5 {[%clk 0:02:36.3]} 15. Nc3
{[%clk 0:02:38]} 15... Qd7 {[%clk 0:02:31.2]} 16. e4 {[%clk 0:02:33.5]} 16... h4
{[%clk 0:02:30]} 17. d5 {[%clk 0:02:26.6]} 17... Bh3 {[%clk 0:02:29.6]} 18. Rd1
{[%clk 0:02:26.1]} 18... Ng4 {[%clk 0:02:27.7]} 19. e5 {[%clk 0:02:21.1]} 19...
Nxh2 {[%clk 0:02:12.6]} 20. Kxh2 {[%clk 0:01:39.6]} 20... hxg3+ {[%clk
0:02:10.4]} 21. Kg1 {[%clk 0:01:39.4]} 21... gxf2+ {[%clk 0:01:56.4]} 22. Kxf2
{[%clk 0:01:39]} 22... Bf5 {[%clk 0:01:37.9]} 23. e6 {[%clk 0:01:08.5]} 23...
Bxc2 {[%clk 0:01:32.7]} 24. exd7 {[%clk 0:01:08]} 24... Bxd1 {[%clk 0:01:28.4]}
25. Nxd1 {[%clk 0:01:08.9]} 25... Nb6 {[%clk 0:01:24]} 26. Ne3 {[%clk
0:01:06.5]} 26... Rh1 {[%clk 0:01:09.7]} 27. a5 {[%clk 0:01:03.7]} 27... Nxd7
{[%clk 0:01:06.2]} 28. Kg2 {[%clk 0:01:03.6]} 28... Re1 {[%clk 0:01:04.9]} 29.
Kf2 {[%clk 0:01:03.7]} 29... Rh1 {[%clk 0:01:04.9]} 30. Kg2 {[%clk 0:01:04]}
30... Rh5 {[%clk 0:00:55.1]} 31. Nxc4 {[%clk 0:00:57.4]} 31... Rxd5 {[%clk
0:00:51.7]} 32. Be3 {[%clk 0:00:57.9]} 32... a6 {[%clk 0:00:35.5]} 33. Nb6
{[%clk 0:00:57.3]} 33... Rd3 {[%clk 0:00:32.9]} 34. Kf3 {[%clk 0:00:53.9]} 34...
f5 {[%clk 0:00:26.7]} 35. Ke2 {[%clk 0:00:52.4]} 35... Rd6 {[%clk 0:00:22.6]}
36. Rc1 {[%clk 0:00:51.8]} 36... Ke8 {[%clk 0:00:09.1]} 37. Rc8+ {[%clk
0:00:42.9]} 37... Kf7 {[%clk 0:00:09.2]} 38. Rc7 {[%clk 0:00:40.8]} 38... Ne5
{[%clk 0:00:06.6]} 39. Bf4 {[%clk 0:00:35.5]} 39... Re6 {[%clk 0:00:05.5]} 40.
Kf1 {[%clk 0:00:34.6]} 40... Nd3 {[%clk 0:00:05]} 41. Bg5 {[%clk 0:00:29.8]}
41... f4 {[%clk 0:00:03.4]} 42. Nd5 {[%clk 0:00:24.4]} 42... f3 {[%clk
0:00:02.9]} 43. Bh4 {[%clk 0:00:21.5]} 43... Re5 {[%clk 0:00:03.2]} 44. Nc3
{[%clk 0:00:19.4]} 44... Rxa5 {[%clk 0:00:03.3]} 45. Nb1 {[%clk 0:00:10.5]}
45... Ra1 {[%clk 0:00:04.2]} 0-1

[Event "Early-Titled-Tuesday-Blitz-July-09-2024"]
[Site "Chess.com"]
[Date "2024.07.09"]
[Round "10"]
[White "manitodeplomo"]
[Black "JunjiCol"]
[Result "1/2-1/2"]
[WhiteElo "2596"]
[BlackElo "2389"]
[TimeControl "180+1"]
[EndTime "9:57:22 PDT"]
[Termination "Game drawn by repetition"]

1. d4 {[%clk 0:02:59.4]} 1... d5 {[%clk 0:02:57.1]} 2. c4 {[%clk 0:02:58.7]}
2... e6 {[%clk 0:02:56.4]} 3. Nf3 {[%clk 0:02:56.5]} 3... Nf6 {[%clk 0:02:56]}
4. Nc3 {[%clk 0:02:56.5]} 4... Nbd7 {[%clk 0:02:55.8]} 5. c5 {[%clk 0:02:55.7]}
5... Ne4 {[%clk 0:02:53.5]} 6. Bf4 {[%clk 0:02:46.9]} 6... c6 {[%clk 0:02:50]}
7. e3 {[%clk 0:02:42.2]} 7... Qa5 {[%clk 0:02:47.8]} 8. Qc2 {[%clk 0:02:28.9]}
8... b6 {[%clk 0:02:47.5]} 9. cxb6 {[%clk 0:02:19.4]} 9... Bb4 {[%clk
0:02:41.3]} 10. Bd3 {[%clk 0:01:51.8]} 10... Nxc3 {[%clk 0:02:38.5]} 11. bxc3
{[%clk 0:01:52]} 11... Bxc3+ {[%clk 0:02:38.3]} 12. Ke2 {[%clk 0:01:52.4]} 12...
Bxa1 {[%clk 0:02:37.9]} 13. Qxc6 {[%clk 0:01:46.9]} 13... Qxa2+ {[%clk
0:02:33.2]} 14. Nd2 {[%clk 0:01:46.3]} 14... axb6 {[%clk 0:02:33]} 15. Bd6
{[%clk 0:01:33]} 15... Qa4 {[%clk 0:02:27]} 16. Qxa4 {[%clk 0:00:53.4]} 16...
Rxa4 {[%clk 0:02:25.8]} 17. Rc1 {[%clk 0:00:53.5]} 17... Ra8 {[%clk 0:02:18.2]}
18. Rc7 {[%clk 0:00:43.4]} 18... Rb8 {[%clk 0:02:08.5]} 19. Bb5 {[%clk
0:00:40.8]} 19... f6 {[%clk 0:01:50.7]} 20. Nb3 {[%clk 0:00:32.5]} 20... Bb2
{[%clk 0:01:49.1]} 21. Rc2 {[%clk 0:00:27.8]} 21... Kf7 {[%clk 0:01:46.7]} 22.
Rxb2 {[%clk 0:00:27.3]} 22... Rb7 {[%clk 0:01:44.2]} 23. Rc2 {[%clk 0:00:20.3]}
23... Nb8 {[%clk 0:01:40]} 24. f3 {[%clk 0:00:15.6]} 24... Bd7 {[%clk
0:01:38.9]} 25. Bd3 {[%clk 0:00:14.9]} 25... Rc8 {[%clk 0:01:36.9]} 26. Rb2
{[%clk 0:00:15]} 26... Ra7 {[%clk 0:01:29.5]} 27. Nd2 {[%clk 0:00:14.6]} 27...
b5 {[%clk 0:01:24.5]} 28. Bc5 {[%clk 0:00:12.3]} 28... Ra6 {[%clk 0:01:20.7]}
29. e4 {[%clk 0:00:11.6]} 29... dxe4 {[%clk 0:01:19]} 30. fxe4 {[%clk
0:00:12.5]} 30... Nc6 {[%clk 0:01:19.3]} 31. Ke3 {[%clk 0:00:12.1]} 31... Ne7
{[%clk 0:01:14.2]} 32. Nb3 {[%clk 0:00:09.6]} 32... g5 {[%clk 0:00:59.2]} 33.
Bb4 {[%clk 0:00:09]} 33... Ra4 {[%clk 0:00:55.5]} 34. Nc5 {[%clk 0:00:09]} 34...
Ra7 {[%clk 0:00:53.4]} 35. Nxd7 {[%clk 0:00:09.4]} 35... Rxd7 {[%clk 0:00:53.3]}
36. Bxb5 {[%clk 0:00:10]} 36... Rdc7 {[%clk 0:00:51.2]} 37. Bd3 {[%clk
0:00:09.3]} 37... Rb8 {[%clk 0:00:48.4]} 38. Ba3 {[%clk 0:00:08.7]} 38... Rxb2
{[%clk 0:00:47.7]} 39. Bxb2 {[%clk 0:00:09.6]} 39... f5 {[%clk 0:00:45.1]} 40.
Ba3 {[%clk 0:00:04.9]} 40... f4+ {[%clk 0:00:44.4]} 41. Kd2 {[%clk 0:00:04.6]}
41... Nc6 {[%clk 0:00:43.6]} 42. Bc5 {[%clk 0:00:04.8]} 42... Nd8 {[%clk
0:00:34.9]} 43. Kc3 {[%clk 0:00:04]} 43... e5 {[%clk 0:00:32.4]} 44. Bc4+ {[%clk
0:00:03.7]} 44... Kg6 {[%clk 0:00:31.9]} 45. Bd5 {[%clk 0:00:03.7]} 45... exd4+
{[%clk 0:00:28.8]} 46. Kxd4 {[%clk 0:00:04.6]} 46... Nc6+ {[%clk 0:00:28.9]} 47.
Kc4 {[%clk 0:00:03.3]} 47... Ne5+ {[%clk 0:00:28.7]} 48. Kd4 {[%clk 0:00:03.5]}
48... Ng4 {[%clk 0:00:28.9]} 49. Bd6 {[%clk 0:00:03.5]} 49... Rd7 {[%clk
0:00:28]} 50. e5 {[%clk 0:00:04.4]} 50... Kf5 {[%clk 0:00:21.5]} 51. Be4+ {[%clk
0:00:03.5]} 51... Ke6 {[%clk 0:00:21.6]} 52. Bd5+ {[%clk 0:00:03.8]} 52... Kf5
{[%clk 0:00:21.9]} 53. Be4+ {[%clk 0:00:04]} 53... Ke6 {[%clk 0:00:21.7]} 54.
Bd5+ {[%clk 0:00:04.4]} 54... Kf5 {[%clk 0:00:22.1]} 1/2-1/2

[Event "Early-Titled-Tuesday-Blitz-July-09-2024"]
[Site "Chess.com"]
[Date "2024.07.09"]
[Round "10"]
[White "artin10862"]
[Black "Losingexperience"]
[Result "1-0"]
[WhiteElo "2941"]
[BlackElo "2724"]
[TimeControl "180+1"]
[EndTime "9:57:23 PDT"]
[Termination "artin10862 won on time"]

1. e4 {[%clk 0:03:00.9]} 1... c5 {[%clk 0:03:00]} 2. c3 {[%clk 0:02:57.2]} 2...
Nf6 {[%clk 0:02:59.3]} 3. e5 {[%clk 0:02:57.1]} 3... Nd5 {[%clk 0:02:59.7]} 4.
d4 {[%clk 0:02:57.2]} 4... cxd4 {[%clk 0:02:59.1]} 5. Bc4 {[%clk 0:02:57.4]}
5... Nb6 {[%clk 0:02:58.6]} 6. Bb3 {[%clk 0:02:58]} 6... Nc6 {[%clk 0:02:56.2]}
7. Nf3 {[%clk 0:02:57.5]} 7... d6 {[%clk 0:02:56.2]} 8. exd6 {[%clk 0:02:57.3]}
8... e6 {[%clk 0:02:54.5]} 9. O-O {[%clk 0:02:55.9]} 9... Bxd6 {[%clk
0:02:54.7]} 10. cxd4 {[%clk 0:02:55.8]} 10... O-O {[%clk 0:02:55]} 11. Nc3
{[%clk 0:02:56.3]} 11... Bd7 {[%clk 0:02:55]} 12. a3 {[%clk 0:02:48]} 12... Rc8
{[%clk 0:02:54.6]} 13. Bc2 {[%clk 0:02:44.5]} 13... g6 {[%clk 0:02:37.5]} 14. h4
{[%clk 0:02:29.1]} 14... Be7 {[%clk 0:02:18.7]} 15. h5 {[%clk 0:02:24.3]} 15...
Bf6 {[%clk 0:02:18.5]} 16. Ne4 {[%clk 0:02:07]} 16... Bg7 {[%clk 0:02:12.6]} 17.
Nd6 {[%clk 0:01:40.4]} 17... Rc7 {[%clk 0:02:05.6]} 18. hxg6 {[%clk 0:01:37.5]}
18... fxg6 {[%clk 0:02:03.5]} 19. Bg5 {[%clk 0:01:26.3]} 19... Qb8 {[%clk
0:01:52.2]} 20. Bb3 {[%clk 0:01:20.7]} 20... Nd5 {[%clk 0:01:51.3]} 21. Re1
{[%clk 0:01:18]} 21... h6 {[%clk 0:01:30]} 22. Bh4 {[%clk 0:01:17.5]} 22... Na5
{[%clk 0:01:16.8]} 23. Ba2 {[%clk 0:01:06.3]} 23... Rc6 {[%clk 0:01:08.6]} 24.
Ne4 {[%clk 0:01:05.9]} 24... b6 {[%clk 0:00:58.7]} 25. Ne5 {[%clk 0:00:56.9]}
25... Bxe5 {[%clk 0:00:47.6]} 26. dxe5 {[%clk 0:00:57.8]} 26... g5 {[%clk
0:00:39.4]} 27. Bg3 {[%clk 0:00:45.5]} 27... Nc4 {[%clk 0:00:38.9]} 28. Qh5
{[%clk 0:00:36.4]} 28... Kg7 {[%clk 0:00:37.3]} 29. Nf6 {[%clk 0:00:33.9]} 29...
Be8 {[%clk 0:00:27.4]} 30. Qe2 {[%clk 0:00:33.4]} 30... b5 {[%clk 0:00:22.2]}
31. Rad1 {[%clk 0:00:31.2]} 31... Bg6 {[%clk 0:00:10.3]} 32. Bb1 {[%clk
0:00:25.9]} 32... Bxb1 {[%clk 0:00:03.9]} 33. Rxb1 {[%clk 0:00:26.8]} 33... Ncb6
{[%clk 0:00:03.9]} 34. Qd3 {[%clk 0:00:20.2]} 34... Rh8 {[%clk 0:00:04]} 35.
Nh5+ {[%clk 0:00:20.2]} 35... Kf7 {[%clk 0:00:03.2]} 36. Qf3+ {[%clk 0:00:20.6]}
36... Ke7 {[%clk 0:00:03.6]} 37. Nf6 {[%clk 0:00:18.6]} 37... Qf8 {[%clk
0:00:04.2]} 38. Rbc1 {[%clk 0:00:17.7]} 38... Rxc1 {[%clk 0:00:03.8]} 39. Rxc1
{[%clk 0:00:18.6]} 39... Nc4 {[%clk 0:00:03.2]} 40. b3 {[%clk 0:00:16.4]} 40...
Nxe5 {[%clk 0:00:01.8]} 41. Bxe5 {[%clk 0:00:14.3]} 41... Nxf6 {[%clk
0:00:02.7]} 42. Rc7+ {[%clk 0:00:11.9]} 42... Nd7 {[%clk 0:00:02.9]} 43. Qc6
{[%clk 0:00:12.6]} 43... Qd8 {[%clk 0:00:02.3]} 44. Qd6+ {[%clk 0:00:13.1]}
44... Kf7 {[%clk 0:00:02.5]} 45. Rxd7+ {[%clk 0:00:13.3]} 1-0

[Event "Early-Titled-Tuesday-Blitz-July-09-2024"]
[Site "Chess.com"]
[Date "2024.07.09"]
[Round "10"]
[White "YaWaleriy"]
[Black "HelenaWalker2912"]
[Result "0-1"]
[WhiteElo "2388"]
[BlackElo "2506"]
[TimeControl "180+1"]
[EndTime "9:57:24 PDT"]
[Termination "HelenaWalker2912 won on time"]

1. d4 {[%clk 0:02:57.2]} 1... d5 {[%clk 0:03:00]} 2. Nf3 {[%clk 0:02:56.2]} 2...
Nf6 {[%clk 0:03:00.1]} 3. c4 {[%clk 0:02:56]} 3... e6 {[%clk 0:02:59.4]} 4. Nc3
{[%clk 0:02:56]} 4... c6 {[%clk 0:02:59.3]} 5. e3 {[%clk 0:02:55]} 5... a6
{[%clk 0:02:58.9]} 6. Qc2 {[%clk 0:02:53.2]} 6... c5 {[%clk 0:02:58.8]} 7. cxd5
{[%clk 0:02:49]} 7... exd5 {[%clk 0:02:59.7]} 8. dxc5 {[%clk 0:02:36.8]} 8...
Bxc5 {[%clk 0:02:57.8]} 9. Be2 {[%clk 0:02:37.1]} 9... Nc6 {[%clk 0:02:46.9]}
10. O-O {[%clk 0:02:36.1]} 10... Be6 {[%clk 0:02:30.9]} 11. Rd1 {[%clk
0:02:31.2]} 11... Qe7 {[%clk 0:02:22.8]} 12. a3 {[%clk 0:02:21.6]} 12... O-O
{[%clk 0:02:18.6]} 13. b4 {[%clk 0:02:20.1]} 13... Bd6 {[%clk 0:02:19.2]} 14.
Bb2 {[%clk 0:02:19.7]} 14... Rac8 {[%clk 0:02:18.5]} 15. Rac1 {[%clk 0:02:15.9]}
15... a5 {[%clk 0:02:15.5]} 16. b5 {[%clk 0:02:11.7]} 16... Ne5 {[%clk
0:01:26.2]} 17. Nxe5 {[%clk 0:02:10.4]} 17... Bxe5 {[%clk 0:01:27.1]} 18. Qa4
{[%clk 0:02:09.8]} 18... Ne4 {[%clk 0:01:19.9]} 19. Nxe4 {[%clk 0:00:59.2]}
19... Bxb2 {[%clk 0:01:19.3]} 20. Rb1 {[%clk 0:00:47]} 20... Qxa3 {[%clk
0:01:10]} 21. Qxa3 {[%clk 0:00:42.8]} 21... Bxa3 {[%clk 0:01:10.9]} 22. Ng5
{[%clk 0:00:40.6]} 22... Rc2 {[%clk 0:00:48.3]} 23. Bf3 {[%clk 0:00:38]} 23...
Bb2 {[%clk 0:00:42.2]} 24. Bxd5 {[%clk 0:00:18.7]} 24... Bxd5 {[%clk 0:00:40.8]}
25. Rxd5 {[%clk 0:00:18.4]} 25... a4 {[%clk 0:00:41.4]} 26. b6 {[%clk 0:00:16]}
26... a3 {[%clk 0:00:40.5]} 27. Ra5 {[%clk 0:00:15.8]} 27... Rfc8 {[%clk
0:00:35.7]} 28. g3 {[%clk 0:00:14.6]} 28... g6 {[%clk 0:00:33.8]} 29. Ne4 {[%clk
0:00:11.9]} 29... R8c6 {[%clk 0:00:29.3]} 30. Kf1 {[%clk 0:00:08.8]} 30... Rxb6
{[%clk 0:00:28.8]} 31. Rxa3 {[%clk 0:00:07.8]} 31... Re6 {[%clk 0:00:12.6]} 32.
Ra2 {[%clk 0:00:07.4]} 32... Rxe4 {[%clk 0:00:11.2]} 33. Raxb2 {[%clk
0:00:07.3]} 33... Rxb2 {[%clk 0:00:11.2]} 34. Rxb2 {[%clk 0:00:07.1]} 34... Re7
{[%clk 0:00:11.7]} 35. Rb6 {[%clk 0:00:06.8]} 35... Kf8 {[%clk 0:00:11.1]} 36.
h4 {[%clk 0:00:05.3]} 36... h5 {[%clk 0:00:10.8]} 37. Ke2 {[%clk 0:00:05.8]}
37... Ke8 {[%clk 0:00:11.4]} 38. Kd3 {[%clk 0:00:06.1]} 38... Kd8 {[%clk
0:00:12.1]} 39. Kd4 {[%clk 0:00:04.9]} 39... Kc7 {[%clk 0:00:12.7]} 40. Rb5
{[%clk 0:00:03.3]} 40... Kc6 {[%clk 0:00:12.7]} 41. Rb2 {[%clk 0:00:02.1]} 41...
b5 {[%clk 0:00:12.6]} 42. e4 {[%clk 0:00:01.9]} 42... Kb6 {[%clk 0:00:10.8]} 43.
f4 {[%clk 0:00:01.3]} 43... Ka5 {[%clk 0:00:09.5]} 0-1

[Event "Early-Titled-Tuesday-Blitz-July-09-2024"]
[Site "Chess.com"]
[Date "2024.07.09"]
[Round "10"]
[White "amylazy"]
[Black "AlexandraSamaganova"]
[Result "1-0"]
[WhiteElo "2495"]
[BlackElo "2371"]
[TimeControl "180+1"]
[EndTime "9:57:27 PDT"]
[Termination "amylazy won by checkmate"]

1. d4 {[%clk 0:02:54]} 1... Nf6 {[%clk 0:02:55]} 2. Nf3 {[%clk 0:02:52.9]} 2...
e6 {[%clk 0:02:54.8]} 3. e3 {[%clk 0:02:53.2]} 3... b6 {[%clk 0:02:54.2]} 4. Bd3
{[%clk 0:02:54.1]} 4... Bb7 {[%clk 0:02:54.1]} 5. O-O {[%clk 0:02:55]} 5... Be7
{[%clk 0:02:50.3]} 6. c4 {[%clk 0:02:55.3]} 6... O-O {[%clk 0:02:47.1]} 7. Nc3
{[%clk 0:02:55.5]} 7... d5 {[%clk 0:02:39.2]} 8. b3 {[%clk 0:02:52.9]} 8... c5
{[%clk 0:02:37.1]} 9. cxd5 {[%clk 0:02:51.8]} 9... Nxd5 {[%clk 0:02:19.5]} 10.
Bb2 {[%clk 0:02:50.6]} 10... Nd7 {[%clk 0:02:11.5]} 11. Rc1 {[%clk 0:02:46.5]}
11... N7f6 {[%clk 0:02:09.2]} 12. Nxd5 {[%clk 0:02:43.1]} 12... Bxd5 {[%clk
0:02:07.3]} 13. Re1 {[%clk 0:02:32.8]} 13... cxd4 {[%clk 0:02:02.6]} 14. Nxd4
{[%clk 0:02:27.5]} 14... Bb4 {[%clk 0:01:44.7]} 15. Rf1 {[%clk 0:02:23.7]} 15...
Rc8 {[%clk 0:01:36.6]} 16. Qe2 {[%clk 0:02:21]} 16... Qe7 {[%clk 0:01:11.3]} 17.
Bb1 {[%clk 0:01:46.5]} 17... Bd6 {[%clk 0:01:01.2]} 18. Nb5 {[%clk 0:01:44.9]}
18... Bb8 {[%clk 0:01:00.7]} 19. Ba3 {[%clk 0:01:36.4]} 19... Qb7 {[%clk
0:00:50]} 20. Bxf8 {[%clk 0:01:34.3]} 20... Rxf8 {[%clk 0:00:46.1]} 21. f3
{[%clk 0:01:09.3]} 21... a6 {[%clk 0:00:45.8]} 22. Nc3 {[%clk 0:01:08.6]} 22...
Bc6 {[%clk 0:00:44.7]} 23. Qf2 {[%clk 0:00:55.7]} 23... b5 {[%clk 0:00:44.5]}
24. Qh4 {[%clk 0:00:53.7]} 24... h6 {[%clk 0:00:42.4]} 25. Ne4 {[%clk
0:00:53.4]} 25... Nd5 {[%clk 0:00:35.3]} 26. Nc5 {[%clk 0:00:44.4]} 26... Qb6
{[%clk 0:00:34.8]} 27. Qf2 {[%clk 0:00:42.8]} 27... Ba8 {[%clk 0:00:25.4]} 28.
e4 {[%clk 0:00:41.5]} 28... Qd6 {[%clk 0:00:17.4]} 29. g3 {[%clk 0:00:39.4]}
29... Nf6 {[%clk 0:00:10.4]} 30. Rfd1 {[%clk 0:00:39]} 30... Qb6 {[%clk
0:00:08.1]} 31. Nd7 {[%clk 0:00:32.8]} 31... Nxd7 {[%clk 0:00:04.7]} 32. Rxd7
{[%clk 0:00:31.3]} 32... Qa5 {[%clk 0:00:04.6]} 33. Kg2 {[%clk 0:00:28.4]} 33...
Be5 {[%clk 0:00:03.9]} 34. Qd2 {[%clk 0:00:23.2]} 34... b4 {[%clk 0:00:03.3]}
35. Rd1 {[%clk 0:00:12]} 35... Bc3 {[%clk 0:00:03.1]} 36. Qd3 {[%clk 0:00:11.7]}
36... Bc6 {[%clk 0:00:01.9]} 37. Rd8 {[%clk 0:00:11.8]} 37... Rxd8 {[%clk
0:00:01]} 38. Qxd8+ {[%clk 0:00:11.1]} 38... Qxd8 {[%clk 0:00:01.4]} 39. Rxd8+
{[%clk 0:00:11.9]} 39... Kh7 {[%clk 0:00:02]} 40. Rc8 {[%clk 0:00:12.3]} 40...
Bb5 {[%clk 0:00:02]} 41. Rc7 {[%clk 0:00:12.3]} 41... Kg6 {[%clk 0:00:01]} 42.
e5+ {[%clk 0:00:12.4]} 42... Kg5 {[%clk 0:00:01.1]} 43. Rxf7 {[%clk 0:00:11.3]}
43... g6 {[%clk 0:00:01.5]} 44. h4+ {[%clk 0:00:11.6]} 44... Kh5 {[%clk
0:00:01.7]} 45. Rg7 {[%clk 0:00:08.6]} 45... g5 {[%clk 0:00:01.7]} 46. Bg6#
{[%clk 0:00:08.7]} 1-0

[Event "Early-Titled-Tuesday-Blitz-July-09-2024"]
[Site "Chess.com"]
[Date "2024.07.09"]
[Round "10"]
[White "sathvikadiga"]
[Black "JosefineHeinemann"]
[Result "1-0"]
[WhiteElo "2668"]
[BlackElo "2523"]
[TimeControl "180+1"]
[EndTime "9:57:28 PDT"]
[Termination "sathvikadiga won by resignation"]

1. e4 {[%clk 0:03:00.9]} 1... e5 {[%clk 0:02:58]} 2. Nf3 {[%clk 0:03:01]} 2...
Nc6 {[%clk 0:02:51.9]} 3. Bc4 {[%clk 0:03:00.8]} 3... Bc5 {[%clk 0:02:51.3]} 4.
c3 {[%clk 0:02:59.8]} 4... Nf6 {[%clk 0:02:51.4]} 5. d3 {[%clk 0:03:00.4]} 5...
d6 {[%clk 0:02:50]} 6. O-O {[%clk 0:03:00.5]} 6... a5 {[%clk 0:02:48.7]} 7. Re1
{[%clk 0:02:59.6]} 7... h6 {[%clk 0:02:47.8]} 8. h3 {[%clk 0:02:51.8]} 8... O-O
{[%clk 0:02:47.6]} 9. Nbd2 {[%clk 0:02:42.6]} 9... a4 {[%clk 0:02:45.7]} 10. Bb5
{[%clk 0:02:42]} 10... Bd7 {[%clk 0:02:43.1]} 11. Nf1 {[%clk 0:02:42.5]} 11...
Ne7 {[%clk 0:02:39]} 12. Bxd7 {[%clk 0:02:42]} 12... Nxd7 {[%clk 0:02:38]} 13.
d4 {[%clk 0:02:42.6]} 13... Bb6 {[%clk 0:02:35.3]} 14. Ng3 {[%clk 0:02:43.1]}
14... f5 {[%clk 0:02:23.5]} 15. dxe5 {[%clk 0:02:20.8]} 15... f4 {[%clk
0:02:01.7]} 16. Nf5 {[%clk 0:02:10.2]} 16... Nxf5 {[%clk 0:01:55.5]} 17. exf5
{[%clk 0:02:08.7]} 17... Nxe5 {[%clk 0:01:55]} 18. Nd4 {[%clk 0:01:41.2]} 18...
Qh4 {[%clk 0:01:35]} 19. Re4 {[%clk 0:01:25.2]} 19... g5 {[%clk 0:01:05.3]} 20.
fxg6 {[%clk 0:01:02.4]} 20... Nxg6 {[%clk 0:01:04.9]} 21. Qg4 {[%clk 0:01:00.6]}
21... Qxg4 {[%clk 0:01:04]} 22. hxg4 {[%clk 0:01:01.5]} 22... Bxd4 {[%clk
0:00:54.7]} 23. Rxd4 {[%clk 0:00:55.1]} 23... Kg7 {[%clk 0:00:37.1]} 24. f3
{[%clk 0:00:49.4]} 24... Rae8 {[%clk 0:00:29.5]} 25. Bd2 {[%clk 0:00:44.5]}
25... b5 {[%clk 0:00:28.7]} 26. Kf2 {[%clk 0:00:41.2]} 26... Re6 {[%clk
0:00:27.2]} 27. Re1 {[%clk 0:00:39]} 27... Rxe1 {[%clk 0:00:26.8]} 28. Kxe1
{[%clk 0:00:39.9]} 28... Rf6 {[%clk 0:00:25.3]} 29. Kf2 {[%clk 0:00:39.3]} 29...
Kf7 {[%clk 0:00:24.3]} 30. c4 {[%clk 0:00:38]} 30... c5 {[%clk 0:00:22]} 31. Re4
{[%clk 0:00:33.5]} 31... b4 {[%clk 0:00:22.2]} 32. g3 {[%clk 0:00:27.5]} 32...
fxg3+ {[%clk 0:00:21.9]} 33. Kxg3 {[%clk 0:00:28.4]} 33... Re6 {[%clk
0:00:22.3]} 34. Rxe6 {[%clk 0:00:21.8]} 34... Kxe6 {[%clk 0:00:22]} 35. f4
{[%clk 0:00:19.7]} 35... Kf7 {[%clk 0:00:17.6]} 36. Kf3 {[%clk 0:00:20.2]} 36...
b3 {[%clk 0:00:11.4]} 37. axb3 {[%clk 0:00:18.1]} 37... axb3 {[%clk 0:00:12.3]}
38. Ke4 {[%clk 0:00:18.7]} 38... Ne7 {[%clk 0:00:12]} 39. f5 {[%clk 0:00:18.2]}
39... Kg7 {[%clk 0:00:12.2]} 40. Bf4 {[%clk 0:00:12.4]} 40... Nc6 {[%clk
0:00:09.4]} 41. Bxd6 {[%clk 0:00:12]} 41... Na5 {[%clk 0:00:07.3]} 42. Kd5
{[%clk 0:00:11.8]} 42... Kf6 {[%clk 0:00:06.3]} 43. Bxc5 {[%clk 0:00:10.6]}
43... h5 {[%clk 0:00:07]} 44. gxh5 {[%clk 0:00:10.4]} 44... Kxf5 {[%clk
0:00:07.1]} 45. Be3 {[%clk 0:00:10.8]} 45... Kf6 {[%clk 0:00:04.4]} 46. c5
{[%clk 0:00:10.8]} 46... Ke7 {[%clk 0:00:02.8]} 47. c6 {[%clk 0:00:10.4]} 1-0